Cogmind - Beta 13 X2 @@@ ROGUE MODE // 2024.01.12 @ 23:47:07 Player: Boris Result: Destroyed by B1-6C3(R) with Subdweller Beam Cannon Performance ------------- Evolutions (0) 0 Regions Visited (2) 400 Robots Destroyed (45) 225 Value Destroyed (1009) 1009 Prototype IDs (1) 20 Alien Tech Used (0) 0 Bonus (0) 0 TOTAL SCORE: 1654 Bonus ------- None Cogmind --------- Core Integrity 0/250 Matter 295/300 Energy 68/100 System Corruption 0% Temperature Cool (9) Movement Core (50) Location -10/Subcaves Parts ------- > --- POWER (1) -------- (None) > --- PROPULSION (2) --- (None) > --- UTILITY (2) ------ (None) > --- WEAPON (2) ------- (None) > --- INVENTORY (5) ---- Subdweller Optics Improved Terrain Scanner Scrap Shield Peak State ------------ > --- POWER ------------ Improved Ion Engine > --- PROPULSION ------- Light Treads Light Treads > --- UTILITY ---------- Large Storage Unit Improved Terrain Scanner > --- WEAPON ----------- Improved EM Shotgun Improved EM Shotgun > --- INVENTORY -------- Improved Ion Engine Improved Ion Engine Heat Sink Structural Scanner Structural Scanner Seismic Detector Seismic Detector Weapon Shielding Improved EM Shotgun Improved EM Shotgun Particle Cannon Particle Cannon Assault Rifle Assault Rifle [Rating: 16] Favorites ----------- Power Improved Ion Engine Engine Improved Ion Engine Propulsion Light Treads Treads Light Treads Wheel Subdweller Monowheel Utility Seismic Detector Device Seismic Detector Storage Large Storage Unit Protection Scrap Shield Weapon Improved EM Shotgun Energy Gun Improved EM Shotgun Energy Cannon Subdweller Beam Cannon Ballistic Gun Assault Rifle Slashing Weapon Makeshift Axe Build | -11 -10 -10 ------- Run | Yrd Mat Sub Slots Evolved . | . . . Power . | . . . Propulsion . | . . . Utility . | . . . Weapon . | . . . Parts Attached 73 | 7 24 42 Power 4 | 1 1 2 Engine 4 | 1 1 2 Core . | . . . Reactor . | . . . Propulsion 5 | 2 . 3 Treads 4 | 2 . 2 Leg . | . . . Wheel 1 | . . 1 Hover . | . . . Flight . | . . . Utility 44 | 2 15 27 Device 35 | 1 12 22 Storage 3 | 1 2 . Processor . | . . . Hackware . | . . . Protection 6 | . 1 5 Artifact . | . . . Weapon 20 | 2 8 10 Energy Gun 10 | 2 4 4 Energy Cannon 5 | . 2 3 Ballistic Gun 2 | . 2 . Ballistic Cannon . | . . . Launcher . | . . . Special Weapon . | . . . Impact Weapon . | . . . Slashing Weapon 3 | . . 3 Piercing Weapon . | . . . Special Melee Weapon . | . . . Unidentified Prototypes 1 | . 1 . Parts Lost 7 | . . 7 Power 1 | . . 1 Propulsion 3 | . . 3 Utility . | . . . Weapon 3 | . . 3 Highest Loss Streak 4 | . . 4 To Critical Strikes . | . . . Average Slot Usage (%) 97 | . 99 96 Engine 13 | . 14 12 Treads 27 | . 28 26 Device 18 | . 13 24 Storage 7 | . 14 2 Energy Gun 15 | . 14 16 Energy Cannon 2 | . . 4 Ballistic Gun 6 | . 12 . Slashing Weapon 3 | . . 6 Naked Turns 1 | . . 1 Heaviest Build 36 | 11 36 35 Greatest Support 40 | 40 40 40 Greatest Overweight (x) 4 | . . 4 Average Overweight (x) . | . . . Largest Inventory Capacity 15 | 8 15 15 Average Capacity 9 | 7 11 6 Most Carried 15 | 4 15 15 Average Carried 8 | 1 10 6 Final Capacity 15 | 8 15 5 Final Carried 15 | 4 15 4 Class Distribution -------------------- 93% | Mutant 4% | Subdweller-Mutant Dominant Class ---------------- Mutant | -10/Materials Mutant | -10/Subcaves Resources | -11 -10 -10 ----------- Run | Yrd Mat Sub Matter Collected 1114 | 270 424 420 Remotely . | . . . Salvage Created 1730 | 118 877 735 Parts 103 | 13 47 43 Haulers Intercepted 2 | . 2 . Recyclers Shooed . | . . . Parts Field Recycled . | . . . Retrieved Matter . | . . . Parts Self-Destructed 6 | . . 6 Prevented 2 | . . 2 Kills | -11 -10 -10 ------- Run | Yrd Mat Sub Combat Hostiles Destroyed 29 | . 17 12 Melee 1 | . . 1 Guns 19 | . 12 7 Cannons 1 | . . 1 AOE 7 | . 5 2 Classes Destroyed 13 | 2 7 4 Worker 1 | . 1 . Builder 1 | . 1 . Tunneler 3 | 3 . . Hauler 2 | . 2 . Recycler 2 | 1 1 . Operator 2 | . 2 . Turret 2 | . . 2 Watcher 3 | . 3 . Swarmer 10 | . 5 5 Grunt 12 | . 12 . Sentry 1 | . . 1 Artisan 2 | . . 2 Subdweller 6 | . . 6 Best Kill Streak 4 | 1 4 4 Combat Bots Only 4 | . 4 4 Max Kills in Single Turn 3 | 1 3 2 Gunslinging . | . . . Exploded 2 | . 2 2 Melee 1 | . . 1 Uniques/NPCs Destroyed . | . . . Combat | -11 -10 -10 -------- Run | Yrd Mat Sub Hostile Shots Fired 184 | . 46 138 Missed 51 | . 12 39 Damage Taken 1502 | . 352 1150 Core 268 | . 47 221 Absorbed by Shields . | . . . Core Remaining (%) 100 | 100 . . Volleys Fired 109 | 5 57 47 Largest 2 | 2 2 2 Hottest 136 | 80 136 90 Shots Fired 191 | 10 114 67 Gun 185 | 10 112 63 Cannon 6 | . 2 4 Launcher . | . . . Special . | . . . Kinetic 68 | . 68 . Thermal 16 | 10 2 4 Explosive . | . . . Electromagnetic 107 | . 44 63 Robot Hit Streak 14 | 7 14 14 Robot Miss Streak 9 | . 6 9 Penetration Max . | . . . Secondary Targets 1 | . 1 . Max Gunslinging Chain 1 | . 1 . Shots Hit Robots 148 | 7 75 66 Core Hits 84 | 5 41 38 Critical Kills . | . . . Critical Parts Destroyed . | . . . Critical Strikes 1 | . . 1 Sever 1 | . . 1 Melee Attacks 23 | . . 23 Impact . | . . . Slashing 23 | . . 23 Piercing . | . . . Sneak Attacks . | . . . Combat Hostiles . | . . . Follow-up Attacks . | . . . Damage Inflicted 2900 | 74 1345 1481 Guns 1966 | 74 1093 799 Cannons 128 | . 20 108 Explosions 351 | . 232 119 Melee 455 | . . 455 Ramming . | . . . Kinetic 571 | . 571 . Thermal 553 | 74 252 227 Explosive . | . . . Electromagnetic 1321 | . 522 799 Impact . | . . . Slashing 455 | . . 455 Piercing . | . . . Highest Corruption . | . . . Average Corruption . | . . . Corruption Purged . | . . . Corruption Blocked . | . . . Overload Shots . | . . . Overflow Damage 17 | . 17 . Projectiles . | . . . Explosions 17 | . 17 . Melee . | . . . Knockbacks . | . . . Impact . | . . . Kinetic . | . . . Secondary . | . . . Self-Inflicted Damage 30 | . . 30 Shots 1 | . . 1 Rammed . | . . . Targets Rammed . | . . . Kicked . | . . . Crushed . | . . . Highest Temperature 140 | 36 140 15 Average Temperature 29 | 15 34 7 Received Heat Transfer 648 | . 150 498 Siege Activations . | . . . Robots Corrupted 1 | . . 1 Combat Hostiles 1 | . . 1 Parts Fried 7 | . 2 5 Impact Corruptions . | . . . Robots Melted . | . . . Combat Hostiles . | . . . Parts Melted 1 | 1 . . Heat Transferred 910 | 175 387 348 Parts Sabotaged . | . . . Parts Stolen . | . . . Parts Stripped . | . . . Power Chain Reactions 7 | . 5 2 Missiles Intercepted . | . . . Alert | -11 -10 -10 ------- Run | Yrd Mat Sub Peak Influence 334 | 20 334 . Initial 13 | . 13 . Average 98 | 12 106 . Maximum Alert Level 1 | . 1 . Low Security (%) 89 | 100 88 . Level 1 10 | . 11 . Level 2 . | . . . Level 3 . | . . . Level 4 . | . . . Level 5 . | . . . High Security . | . . . Max Security . | . . . Squads Dispatched 6 | . 6 . Investigation 3 | . 3 . Extermination . | . . . Reinforcement 3 | . 3 . Assault . | . . . Garrison . | . . . Intercept . | . . . Searches Triggered . | . . . Construction Impeded . | . . . Haulers Reinforced . | . . . Active Scanning Responses . | . . . Cargo Convoy Interrupts . | . . . Stealth | -11 -10 -10 --------- Run | Yrd Mat Sub Distress Signals 4 | . 4 . Communications Jammed . | . . . Distress Signals . | . . . Times Spotted 84 | . 24 60 Peak Tracking Total 6 | . 6 6 Tactical Retreats 4 | . . 4 Traps | -11 -10 -10 ------- Run | Yrd Mat Sub Traps Triggered 2 | . 1 1 Indirectly . | . . . Trap Hack Attempts . | . . . Triggered . | . . . Disarmed . | . . . Reprogrammed . | . . . Reused 1 | . . 1 Traps Extracted . | . . . Installed 2 | . . 2 Triggered . | . . . Most Traps Carried 1 | . . 1 Machines | -11 -10 -10 ---------- Run | Yrd Mat Sub Machines Disabled 4 | . 2 2 Max in Single Turn 1 | . 1 1 Machines Repaired . | . . . Machines Dismantled . | . . . Machines Sabotaged . | . . . Overloaded Fab Kills . | . . . Hacking | -11 -10 -10 --------- Run | Yrd Mat Sub Machines Accessed 7 | . 7 . Terminals 5 | . 5 . Fabricators . | . . . Repair Stations . | . . . Recycling Units 2 | . 2 . Scanalyzers . | . . . Garrison Access . | . . . Total Hacks 18 | . 18 . Successful 11 | . 11 . Failed 7 | . 7 . Catastrophic . | . . . Database Lockouts . | . . . Manual 9 | . 9 . Terminals 16 | . 16 . Fabricators . | . . . Repair Stations . | . . . Recycling Units 2 | . 2 . Scanalyzers . | . . . Garrison Access . | . . . Terminal Hacks 5 | . 5 . Robot Analysis 1 | . 1 . Unreport Threat 1 | . 1 . Locate Traps 1 | . 1 . Recall Investigation 1 | . 1 . Hauler Manifests 1 | . 1 . Fabricator Hacks . | . . . Repair Station Hacks . | . . . Recycling Unit Hacks . | . . . Scanalyzer . | . . . Garrison Access Hacks . | . . . Unauthorized Hacks 6 | . 6 . Terminals 4 | . 4 . Botnet 3 | . 3 . Disrupt 1 | . 1 . Fabricators . | . . . Repair Stations . | . . . Recycling Units 2 | . 2 . Tunnel 2 | . 2 . Scanalyzers . | . . . Garrison Access . | . . . Data Cores Recovered . | . . . Used . | . . . Hacking Detections 5 | . 5 . Full Trace Events . | . . . Feedback Events . | . . . Feedback Blocked . | . . . Robot Schematics Acquired . | . . . Robots Built . | . . . Authchips . | . . . Time . | . . . Total Robot Build Rating . | . . . Part Schematics Acquired . | . . . Parts Built . | . . . Authchips . | . . . Time . | . . . Total Part Build Rating . | . . . Parts Repaired . | . . . Time . | . . . Parts Recycled . | . . . Recycled Matter . | . . . Retrieved Matter . | . . . Retrieved Components . | . . . Parts Scanalyzed . | . . . Part Schematics Acquired . | . . . Parts Damaged . | . . . Bothacking | -11 -10 -10 ------------ Run | Yrd Mat Sub Used RIF Installer . | . . . Robots Hacked . | . . . Non-combat . | . . . Combat . | . . . Robot Hacks Applied . | . . . Relay Couplers Released . | . . . Fabnet Peak Effective % . | . . . Robots Rewired . | . . . Allies Hacked . | . . . Hacks Repelled . | . . . Allies | -11 -10 -10 -------- Run | Yrd Mat Sub Total Allies . | . . . Largest Group . | . . . Highest-Rated Group . | . . . Highest-Rated Ally . | . . . Total Orders . | . . . Ally Attacks . | . . . Total Damage . | . . . Kills . | . . . Allies Corrupted . | . . . Allies Melted . | . . . Intel | -11 -10 -10 ------- Run | Yrd Mat Sub Robot Analysis Total 1 | . 1 . Derelict Logs Recovered 2 | . . 2 Drone Launches . | . . . Drone Recoveries . | . . . Exploration | -11 -10 -10 ------------- Run | Yrd Mat Sub Turns Passed 6004 | 252 2770 2982 Spaces Moved 2610 | 145 1068 1397 Core 23 | 15 . 8 Treads 2429 | 130 1068 1231 Legs . | . . . Wheels 158 | . . 158 Hover . | . . . Flight . | . . . Fastest Speed 50 | 50 160 50 Average Speed 156 | 148 160 154 Slowest Speed 250 | 160 160 250 Overloaded Moves . | . . . Propulsion Burnouts . | . . . Robots Hopped . | . . . Cave-ins Triggered . | . . . Exploration Rate (%) 55 | 5 100 61 Regions Visited 2 Branch Regions 1 Pre-discovered Areas 2 | . 2 . Known Exits Taken . | . . . Unknown Exits Taken 2 | 1 1 . Scrap Searched 5 | . . 5 Spaces Dug 5 | . . 5 Terrain Destroyed 25 | . 14 11 Melee 5 | . . 5 Projectile . | . . . AOE 20 | . 14 6 Terrain Rammed . | . . . Walls Destroyed . | . . . Machines Disabled . | . . . Actions | -11 -10 -10 --------- Run | Yrd Mat Sub Total 4304 | 169 2012 2123 Wait 1401 | 7 826 568 Move 2608 | 144 1067 1397 Hop . | . . . Pick Up 39 | 6 22 11 Fast Attach 20 | 5 5 10 Attach 13 | 2 1 10 Detach 6 | . . 6 Swap 40 | . 18 22 Drop 40 | . 16 24 Fire 109 | 5 57 47 Melee 23 | . . 23 Ram . | . . . Kick . | . . . Crush . | . . . Escape Stasis . | . . . Rewire . | . . . Trap 2 | . . 2 Miscellaneous 3 | . . 3 Route ------- -11/Scrapyard -10/Materials (discovered 6 exits: [*Mat x3] / [*Min x2] / [*Sub]) -10/Subcaves (discovered 2 exits: [*Mat] / [*Rec]) History --------- Turn | Location | Event 5 | -11/Scrapyard | Discovered new exit (range 15) 253 | -11/Scrapyard | Entered Materials 312 | -10/Materials | Build established: Mutant 915 | -10/Materials | Discovered new exit (range 4) 1495 | -10/Materials | Discovered new exit (range 16) 1896 | -10/Materials | Discovered new exit (range 16) 2031 | -10/Materials | Discovered new exit (range 14) 2360 | -10/Materials | Discovered new exit (range 16) 2984 | -10/Materials | Discovered new exit (range 4) 3023 | -10/Materials | Entered Subcaves 3249 | -10/Subcaves | Learned Materials garrison access intel 3298 | -10/Subcaves | Disturbed a concealed Subdweller 3416 | -10/Subcaves | Discovered new exit (range 14) 3531 | -10/Subcaves | Ambushed by angry Subdweller bent on revenge 5473 | -10/Subcaves | Discovered new exit (range 12) 5721 | -10/Subcaves | Core integrity fell below 50% 5978 | -10/Subcaves | Ambushed by Subdwellers from Twisted Machinery 6002 | -10/Subcaves | Core integrity fell below 20% 6005 | -10/Subcaves | Destroyed by B1-6C3(R) with Subdweller Beam Cannon Last Messages --------------- 05936_ Found 30 Matter. 05941_ Searching scrap... 05941_ Found Sub. Machine Gun. 05941_ Found Shrapnel Trap. 05941_ Found 33 Matter. 05943_ Dropped Scrap Shield Fragment. 05944_ Acquired Shrapnel Trap. 05945_ Dropped Scrap Shield. 05947_ Acquired Scrap Shield. 05951_ Acquired 20 matter. 05978_ C8-2XN(R) emerges from the Twisted Machinery. 05978_ Lgt. Treads destroyed. 05981_ Dropped Shrapnel Trap. 05981_ Sub. Monowheel destroyed. 05982_ Installed Shrapnel Trap. 05996_ Sub. Beam Cannon destroyed. 05997_ Dropped Structural Scanner. 05997_ Dropped Seismic Detector. 06002_ B1-6C3(R) Sub. Optics severed. 06005_ Mak. Axe destroyed. Map ----- +----------------------------------------------------+ | ?????????????????????????????????????????????????? | | ?????????????????????????????????????????????????? | | ?????????????????????????????????????????????????? | | ?????????????????????????????????????????????????? | | ?????????????????????????????????????????????????? | | ?????????????????????????????????????????????????? | | ?????????????????????????????????????????????????? | | ??????????????????????"?? ???????????????????????? | | ?????????????????????? ?? ???????????????????????? | | ?????????????????????? ???????????????????????? | | ?????????????????????# ## ???????????????????????? | | ?????????????????????## ???????????????????????? | | ?????????????????????## ""????????? ##???????????? | | ?????????????????????# ?######?? ##???????????? | | ?????????????????????# "# ###### ##???????????? | | ????????????????????### ### "## ## ???????????? | | ????????????????????### " # # ???????????? | | ????????????????????## # ???????????? | | ????????????????????## ## ???????????? | | ???????????????????#### ## ##????????????? | | ???????????????????###; ###?????????????? | | ???????????????????##;; ### ##?????????????? | | ???????????????????##; ! ### ##?????????????? | | ???????????????????###; %;;### ####????????????? | | ???????????????????##; R ;## ## ????????????? | | ???????????????????##; @;## ##????????????? | | ???????????????????### !! ##????????????? | | ????????????????????### ###????????????? | | ????????????????????### ###????????????? | | ?????????????????????## ] ####???????????? | | ?????????????????????#### ## ###???????????? | | ?????????????????????######## ##???????????? | | ?????????????????############# ######????????? | | ?????????????????############# ########???????? | | ?????????????????##[ & ##### ### ###??#####? | | ?????????????????##%%=" ### #########? | | ?????????????????##"&#|&### ##### [ #" """##? | | ?????????????????#### %#### ######## [[# "##? | | ?????????????????## ##=#### ### #####% # % "### | | ????????######???## & %=%* [ "## | | ???????#######???## % % <## | | ?????##### ####### % ### | | ?????#### ###### ##### "##### [ "### | | ?????## ## #### ##### ="###### "##? | | ?????#### ##### ## #### #######" """##? | | ?????#### ######## ##### ### ########### | | ???????## ### ###### ###### ########### | | ???????####### ############## ######### | | ??????######## ############## #### | | ??????### ?## ## # # ### | +----------------------------------------------------+ Best States ------------- Heat Dissipation 35 Energy Generation 15 Energy Capacity 265 Matter Stores 300 Matter Capacity 300 Sight Range 21 Terrain Scan Range 16 Terrain Scan Density 10 Armor Coverage 800 Weapon Shielding 33 Evasion (%) 50 Recoil Reduction 2 Item Schematics ----------------- None Robot Schematics ------------------ None Fabricated ------------ Nothing Alien Tech Used ----------------- None Achievements -------------- None Challenges ------------ None Game ------ Seed ThermoelectricRefineryDriver Manual? 0 Play Time 00:26:39 Cumulative 407.5 hours Start 2024.01.12 @ 23:19:34 End 2024.01.12 @ 23:47:07 Sessions 1 Manual Loads 0 Difficulty Rogue Special Mode None Game No. 151 Rogue 136 Adventurer 15 Explorer 0 Win Type - Total 26 Types 7/1/7/2/2/0/4/2/1 Lore% 89 Gallery% 91 Achievement% 83 Wizard Run 0 Options --------- ASCII 0 Keyboard 0 Movement Numpad Keybinds 0 Fullscreen 1 Font 18/SmallcapsGlow Map View 76x50 Zoom Use 0% Tactical HUD 1 Map Filters NONE Filters NONE Steam 1 RUN: 0126302a-3ae0-4cdb-92d4-29075a5f849a